Cogmind - Beta 15 @@@ ROGUE MODE // 2025.08.26 @ 13:46:20 Player: shapeshifter Result: Destroyed by S-43 Plague with Heavy Machine Gun Performance ------------- Evolutions (7) 3500 Regions Visited (22) 4400 Robots Destroyed (249) 1245 Value Destroyed (13696) 13696 Prototype IDs (22) 440 Alien Tech Used (4) 800 Bonus (11211) 11211 TOTAL SCORE: 35292 Bonus ------- High Alert Combat Kills 2955 Follower Combat Kills 2127 Entered Garrisons 1200 Used RIF Installer 3000 Met Sigix 2000 Friendly Fire -71 Cogmind --------- Core Integrity 0/1300 Matter 5/300 Energy 99/100 System Corruption 25% Temperature Cool (0) Movement Core (50) Location -3/Quarantine Parts ------- > --- POWER (2) -------- (None) > --- PROPULSION (7) --- (None) > --- UTILITY (8) ------ Enhanced Optical Array Advanced Signal Interpreter > --- WEAPON (4) ------- (None) > --- INVENTORY (5) ---- Centrium Light Armor Plating Terrabomb Advanced Remote Datajack Sigix Containment Pod Peak State ------------ > --- POWER ------------ Light Antimatter Reactor Light Particle Reactor > --- PROPULSION ------- Gravmag Array Gravmag Array Gravmag Array Q-thruster > --- UTILITY ---------- Advanced Energy Well Enhanced Optical Array Advanced Signal Interpreter IFF Parser Centrium Light Armor Plating Improved Remote Force Field Advanced System Shield Relay Coupler [Sentry] > --- WEAPON ----------- Heavy Dispersion Rifle Railgun Railgun > --- INVENTORY -------- Experimental Power Amplifier Improved Component Analysis Suite Transdimensional Reconstructor Railgun Improved Plasma Cutter [Rating: 129] Favorites ----------- Power Light Nuclear Core Engine Improved Deuterium Engine Power Core Light Nuclear Core Reactor Antimatter Reactor Propulsion Improved Heavy Treads Treads Improved Heavy Treads Leg Aluminum Leg Wheel Armored Wheel Hover Unit Gravmag Array Flight Unit Cooled Nuclear Pulse Thruster Utility High-capacity Storage Unit Device Advanced Heat Sink Storage High-capacity Storage Unit Processor Improved Signal Interpreter Hackware Relay Coupler [Sentry] Protection Light Armor Plating Artifact Phase Redirector Weapon Gauss Rifle Energy Gun Tesla Rifle Ballistic Gun Gauss Rifle Ballistic Cannon Enhanced Gauss Cannon Launcher Improved Proton Missile Launcher Special Weapon Remote Datajack Piercing Weapon Heavy Pick Build | -11 -10 -9 -9 -8 -8 -8 -8 -7 -7 -7 -7 -6 -6 -5 -5 -4 -4 -4 -4 -3 -3 -3 ------- Run | Yrd Mat Mat Min Mat Gar Mat Gar Fac Gar Fac Gar Fac Gar Fac Gar Fac Upp Upp Zhi Pro Res Qua Slots Evolved 14 | . . 2 . 2 . . . 2 . . . 2 . 2 . 2 . . . . 2 . Power 1 | . . . . . . . . . . . . . . . . . . . . . 1 . Propulsion 5 | . . . . 1 . . . . . . . 2 . 1 . . . . . . 1 . Utility 6 | . . 1 . . . . . 2 . . . . . 1 . 2 . . . . . . Weapon 2 | . . 1 . 1 . . . . . . . . . . . . . . . . . . Parts Attached 235 | 7 7 12 2 16 18 2 10 11 12 1 18 6 24 4 24 12 5 8 5 5 20 6 Power 25 | 1 1 2 . 2 3 1 2 . . . 3 1 2 1 1 2 . . . 1 2 . Engine 13 | 1 1 2 . 1 2 1 . . . . 2 1 1 . . . . . . 1 . . Core 7 | . . . . 1 1 . 2 . . . 1 . 1 1 . . . . . . . . Reactor 5 | . . . . . . . . . . . . . . . 1 2 . . . . 2 . Propulsion 52 | 2 . 3 . 4 3 . 4 1 4 1 4 1 6 1 4 2 3 . 1 2 5 1 Treads 35 | 2 . 3 . 4 3 . 3 1 2 . 2 1 4 1 4 2 3 . . . . . Leg 4 | . . . . . . . . . 2 . 2 . . . . . . . . . . . Wheel 5 | . . . . . . . 1 . . 1 . . 2 . . . . . . . 1 . Hover 4 | . . . . . . . . . . . . . . . . . . . . . 3 1 Flight 4 | . . . . . . . . . . . . . . . . . . . 1 2 1 . Utility 93 | 2 4 6 . 4 5 1 2 7 5 . 2 2 11 2 11 6 2 3 4 1 10 3 Device 18 | 1 . . . . 3 . 1 1 2 . . . 1 . . 1 . 3 1 . 3 1 Storage 12 | 1 2 . . 1 . . . . 1 . . . 3 . 1 . . . 2 . . 1 Processor 10 | . . . . . 1 . . 1 1 . 1 1 . 1 . 1 . . . . 3 . Hackware 28 | . . . . 1 . . . 4 . . . . 7 . 7 4 2 . . 1 2 . Protection 24 | . 2 6 . 2 1 1 1 1 1 . 1 1 . 1 3 . . . 1 . 2 . Artifact 1 | . . . . . . . . . . . . . . . . . . . . . . 1 Weapon 65 | 2 2 1 2 6 7 . 2 3 3 . 9 2 5 . 8 2 . 5 . 1 3 2 Energy Gun 9 | . . . . 1 1 . 2 . . . . . 1 . . . . 3 . . . 1 Energy Cannon . | . . . . . . . . . . . . . . . . . . . . . . . Ballistic Gun 37 | 2 2 1 2 5 4 . . 1 . . 6 2 3 . 4 1 . . . 1 3 . Ballistic Cannon 9 | . . . . . 1 . . 1 2 . 1 . . . 2 . . 2 . . . . Launcher 5 | . . . . . . . . . 1 . 2 . . . 1 1 . . . . . . Special Weapon 3 | . . . . . . . . 1 . . . . 1 . 1 . . . . . . . Impact Weapon . | . . . . . . . . . . . . . . . . . . . . . . . Slashing Weapon . | . . . . . . . . . . . . . . . . . . . . . . . Piercing Weapon 2 | . . . . . 1 . . . . . . . . . . . . . . . . 1 Special Melee Weapon . | . . . . . . . . . . . . . . . . . . . . . . . Unidentified Prototypes 15 | . 1 . . 2 1 . . . . . . . 1 . . . . . 4 . 2 4 Corrupted Parts 4 | . . . . . . . . . . . 3 . . . 1 . . . . . . . System Corruption 31 | . . . . . . . . . . . 28 . . . 3 . . . . . . . Parts Lost 93 | . . 4 1 4 4 . 9 . 5 . 12 3 2 1 7 16 9 . . 5 . 11 Power 13 | . . 1 . 1 1 . 2 . . . 2 . . . . 3 . . . 1 . 2 Propulsion 23 | . . . . 1 . . 5 . 3 . 2 1 . . . 3 3 . . 1 . 4 Utility 23 | . . 3 . 2 1 . . . . . 2 . . . 3 3 4 . . 1 . 4 Weapon 34 | . . . 1 . 2 . 2 . 2 . 6 2 2 1 4 7 2 . . 2 . 1 Highest Loss Streak 8 | . . 2 1 1 4 . 3 . 5 . 7 3 1 1 2 8 4 . . 4 . 6 To Critical Strikes . | . . . . . . . . . . . . . . . . . . . . . . . Average Backups 16 | 3 11 14 13 15 18 18 18 18 18 19 19 19 18 22 23 17 8 4 12 8 4 8 Power . | . 1 1 1 . . 1 . 1 1 1 . 1 1 1 1 . . . . . . . Propulsion 2 | 1 1 2 3 4 2 2 1 1 . . 2 2 2 5 3 5 2 . 1 1 . . Utility 8 | . 6 5 3 4 9 10 10 8 9 11 9 8 9 12 13 7 4 3 5 3 1 4 Weapon 4 | . 1 4 5 5 6 5 4 5 5 5 4 5 5 2 3 2 . . 3 . . 1 Tool/Special . | . . . . . . . . . . . . . . . . . . . . . . . Unused Backups 80 | 1 4 5 . 3 4 1 4 1 1 2 5 2 11 . 22 . . . . 4 2 8 Power 9 | . 2 2 . . . . . 1 . . . . 3 . 1 . . . . . . . Propulsion 4 | . 1 1 . 1 . . . . . . . . . . . . . . . . . 1 Utility 55 | . 1 1 . 1 4 1 3 . 1 2 5 2 6 . 21 . . . . 2 2 3 Weapon 9 | 1 . 1 . 1 . . 1 . . . . . 2 . . . . . . 2 . 1 Tool/Special 3 | . . . . . . . . . . . . . . . . . . . . . . 3 Average Slot Usage (%) 82 | . 100 98 99 98 96 100 93 94 91 84 84 82 89 74 72 64 49 44 57 59 64 67 Engine 3 | . 14 11 11 8 3 3 3 . . . 5 6 2 . . . . . . . . . Core 2 | . . . . . 4 5 4 7 7 7 1 . 3 5 1 . . . . . . . Reactor 1 | . . . . . . . . . . . . . . . 3 4 . . . . 5 7 Treads 18 | . 28 22 22 27 27 27 25 22 12 1 9 16 20 16 17 15 13 15 15 6 . . Device 3 | . 1 . . . 8 . 7 7 7 . 1 . . . . . . 6 10 5 8 12 Storage 7 | . 14 11 11 9 9 9 9 7 7 7 7 6 6 5 5 5 4 . 6 7 4 8 Processor 3 | . . . . . . 9 5 . . 7 11 13 3 1 1 . . . . . 7 9 Hackware 8 | . . . . . 2 . . 10 10 7 7 6 17 15 11 18 25 15 15 18 12 4 Protection 6 | . 12 20 22 16 6 9 5 7 7 7 6 5 3 3 5 2 . . . . 2 . Ballistic Gun 16 | . 28 33 32 35 31 27 20 13 6 . 19 25 12 11 10 10 2 . . 1 7 1 Ballistic Cannon 2 | . . . . . . . . 1 7 21 2 . . . 6 3 . 3 2 3 . . Special Weapon 1 | . . . . . . . . 6 3 . . . 4 5 2 . . . . . . 3 Piercing Weapon 2 | . . . . . 2 9 8 2 7 7 . . 5 4 . . . . . . . . Peak Build Rating 129 | 7 12 16 15 28 43 43 46 51 51 49 61 57 88 99 107 111 78 95 111 105 127 129 Average Rating 57 | 4 9 13 13 19 36 41 41 46 45 48 47 51 68 95 101 99 67 69 87 76 95 103 On Entrance 53 | . 7 12 13 15 28 41 42 37 49 44 49 52 57 84 99 103 78 55 95 105 46 120 Naked Turns . | . . . . . . . . . . . . . . . . . . . . . . . Heaviest Build 200 | 14 54 39 38 67 66 64 68 72 77 82 82 73 172 187 200 193 153 41 183 178 66 64 Greatest Support 225 | 40 40 40 40 60 64 64 64 68 68 40 67 77 180 225 225 225 225 75 225 225 60 70 Greatest Overweight (x) 6 | . 1 . . 1 1 . 5 5 6 6 2 1 5 . 1 . 1 4 1 . 1 1 Average Overweight (x) . | . . . . . . . . . 3 2 1 . . . . . . . . . . . Largest Inventory Capacity 30 | 8 20 15 15 20 20 20 20 20 20 20 20 20 30 30 30 30 30 5 30 30 5 10 Average Capacity 20 | 7 13 15 15 17 20 20 20 20 20 20 20 20 21 30 30 30 28 5 30 14 5 9 Most Carried 30 | 6 16 15 15 20 20 20 20 20 20 20 20 20 25 30 30 30 13 5 20 16 5 10 Average Carried 18 | 3 11 14 13 16 19 19 19 19 19 19 19 19 19 26 29 24 11 5 12 8 4 9 Final Capacity 30 | 8 15 15 15 20 20 20 20 20 20 20 20 20 30 30 30 30 5 5 30 5 5 5 Final Carried 30 | 3 15 13 15 20 20 19 19 20 20 20 19 20 25 30 30 29 5 5 16 5 5 5 Class Distribution -------------------- 18% | Botlord-Tank 12% | Mutant 12% | Bothacker-Tank 10% | Bothacker-Gunner 10% | Scavenger-Tank 8% | Hauler-Mutant 7% | Tank 5% | Bothacker-Mutant 4% | Gunner Dominant Class ---------------- Mutant | -10/Materials Tank | -9/Materials Scavenger-Tank | -9/Mines Scavenger-Tank | -8/Materials Commander-Gunner | -8/Garrison Commander-Tank | -8/Materials Bothacker-Mutant | -8/Garrison Bothacker-Tank | -7/Factory Bothacker-Tank | -7/Garrison Bothacker-Tank | -7/Factory Bothacker-Gunner | -7/Garrison Bothacker-Gunner | -6/Factory Botlord-Tank | -6/Garrison Botlord-Tank | -5/Factory Botlord-Tank | -5/Garrison Botlord-Tank | -4/Factory Hauler-Mutant | -4/Upper Caves Mutant | -4/Upper Caves Hauler-Mutant | -4/Zhirov Sprinter | -3/Proximity Caves Tank | -3/Research Mutant | -3/Quarantine Resources | -11 -10 -9 -9 -8 -8 -8 -8 -7 -7 -7 -7 -6 -6 -5 -5 -4 -4 -4 -4 -3 -3 -3 ----------- Run | Yrd Mat Mat Min Mat Gar Mat Gar Fac Gar Fac Gar Fac Gar Fac Gar Fac Upp Upp Zhi Pro Res Qua Matter Collected 10939 | 227 290 404 47 695 1097 532 1069 521 541 49 923 196 905 248 1874 893 56 128 157 60 27 . Remotely 90 | . . . . . . . . . . . . . . . . . . 90 . . . . Salvage Created 12479 | 46 290 940 120 1190 941 403 1338 263 507 56 782 342 1463 220 1865 1376 28 . 287 . . 22 Parts 617 | 3 19 69 5 65 50 30 64 11 25 2 53 14 53 21 73 56 . . 4 . . . Haulers Intercepted 11 | . 2 1 . 4 . 1 . 1 . 1 . . . . . 1 . . . . . . Recyclers Shooed 5 | . . 2 . . . . . 1 . . . . . . . 2 . . . . . . Parts Field Recycled . | . . . . . . . . . . . . . . . . . . . . . . . Retrieved Matter . | . . . . . . . . . . . . . . . . . . . . . . . Parts Self-Destructed 1 | . . . . . . . . . . . . . . . . . . . 1 . . . Prevented 2 | . . . . . . . . . . . . . . . . . . . 2 . . . Kills | -11 -10 -9 -9 -8 -8 -8 -8 -7 -7 -7 -7 -6 -6 -5 -5 -4 -4 -4 -4 -3 -3 -3 ------- Run | Yrd Mat Mat Min Mat Gar Mat Gar Fac Gar Fac Gar Fac Gar Fac Gar Fac Upp Upp Zhi Pro Res Qua Combat Hostiles Destroyed 215 | . 4 27 3 18 19 8 27 3 15 1 27 6 12 5 24 15 1 . . . . . Melee 1 | . . . . . . . . . . . . 1 . . . . . . . . . . Guns 160 | . 4 27 3 18 19 8 27 2 5 . 8 5 10 4 11 9 . . . . . . Cannons 38 | . . . . . . . . 1 10 1 8 . 2 1 13 2 . . . . . . AOE 14 | . . . . . . . . . . . 11 . . . . 3 . . . . . . Classes Destroyed 19 | 1 3 3 . 1 2 . 2 . 1 . . . . 1 2 3 . . . . . . Worker 3 | . . . . . . . . . . . . . . . . 2 . . . . . 1 Builder 2 | . . . . . . . . . . . . . . . . 2 . . . . . . Tunneler 2 | 2 . . . . . . . . . . . . . . . . . . . . . . Hauler 11 | . 2 1 . 4 . 1 . 1 . 1 . . . . . 1 . . . . . . Recycler 6 | . . 1 . 3 . . . 1 . . . . . . . 1 . . . . . . Mechanic 1 | . . . . . . . . . . . . . . . . 1 . . . . . . Operator 1 | . . . . . . . . . 1 . . . . . . . . . . . . . Watcher 8 | . 1 2 . 1 1 1 . 1 . . . . . . . 1 . . . . . . Swarmer 65 | . . 17 . 4 4 3 1 . . . 18 . 5 4 9 . . . . . . . Grunt 85 | . 4 5 3 8 7 2 13 . 11 . 3 5 7 . 10 7 . . . . . . Brawler 8 | . . . . . . . 2 . . . 3 . . . . 3 . . . . . . Duelist 4 | . . . . . 1 1 1 . 1 . . . . . . . . . . . . . Sentry 28 | . . 5 . 3 6 2 5 1 1 . 3 . . . 1 . 1 . . . . . Demolisher 1 | . . . . . . . . . . . . . . . 1 . . . . . . . Specialist 2 | . . . . . 1 . . . . . . . . . 1 . . . . . . . Hunter 7 | . . . . 3 . . . 1 . . . . . . . 3 . . . . . . Programmer 12 | . . . . . . . 5 1 2 1 . 1 . . . 2 . . . . . . Heavy 1 | . . . . . . . . . . . . . . 1 . . . . . . . . Executioner 2 | . . . . . . . . . . . . . . . 2 . . . . . . . Decomposer 1 | . . . . . . . . . . . . . . . . . 1 . . . . . Best Kill Streak 12 | 1 1 8 2 4 8 5 5 2 12 1 8 2 5 4 3 7 1 . . . . 1 Combat Bots Only 12 | . 1 7 2 3 8 5 5 1 12 1 8 2 5 4 3 4 1 . . . . . Max Kills in Single Turn 4 | 1 1 2 1 1 2 2 2 1 2 1 3 1 2 1 2 4 1 . . . . 1 Gunslinging 1 | . . 1 . . 1 1 1 . . . 1 . 1 . . . . . . . . . Exploded 3 | . . . . . . . . . . . 3 . . . . 1 . . . . . . Melee 1 | . . . . . . . . . . . . 1 . . . . . . . . . . Uniques/NPCs Destroyed . | . . . . . . . . . . . . . . . . . . . . . . . Combat | -11 -10 -9 -9 -8 -8 -8 -8 -7 -7 -7 -7 -6 -6 -5 -5 -4 -4 -4 -4 -3 -3 -3 -------- Run | Yrd Mat Mat Min Mat Gar Mat Gar Fac Gar Fac Gar Fac Gar Fac Gar Fac Upp Upp Zhi Pro Res Qua Hostile Shots Fired 2084 | . 33 167 24 77 120 12 159 47 139 . 298 46 72 47 155 307 91 8 . 63 63 156 Missed 652 | . 9 42 6 11 33 4 47 19 43 . 98 16 18 13 52 91 24 4 . 27 28 67 Hits 1432 | . 24 125 18 66 87 8 112 28 96 . 200 30 54 34 103 216 67 4 . 36 35 89 Melee 28 | . . . . . . . 6 . . . 1 . . . 3 4 8 . . 6 . . Projectile 1404 | . 24 125 18 66 87 8 106 28 96 . 199 30 54 34 100 212 59 4 . 30 35 89 AOE 3 | . . . . . . . . . . . 1 . . . 1 . . . . . . 1 Critical Strikes 57 | . 1 3 1 1 5 2 3 . 2 . 3 . . 1 4 10 3 . . 6 1 11 Part Disruptions 3 | . . . . . . . 1 . . . . . . . . . 2 . . . . . Damage Taken 23666 | . 349 1166 238 950 1117 129 1834 340 1254 . 2555 564 932 972 2089 3874 1584 57 36 833 593 2200 Core 3404 | . 59 76 25 28 122 . 237 35 158 . 276 20 89 103 279 220 192 . . 246 92 1147 Absorbed by Shields 318 | . . . . . . . . . . . . . . . . 38 . . . . 167 113 Reduced by Siege Mode 117 | . . . . . . . . . . . . . . . . 117 . . . . . . Redirected to Core 40 | . . . . . . . . . . . . . . . . . . . . . . 40 Redirected to Shielding 111 | . . 69 . . . . . . . . 42 . . . . . . . . . . . Core Remaining (%) 62 | 100 76 . 74 . . . 29 . . . 33 . 87 . 61 . . . . 42 . . Volleys Fired 806 | 8 42 73 15 67 69 19 107 36 42 3 61 17 33 24 104 68 6 . 11 1 . . Largest 4 | 2 2 3 3 4 4 3 3 3 3 3 4 4 3 3 4 3 2 . 2 1 . . Hottest 138 | 40 40 60 60 91 100 75 85 113 108 120 120 112 100 110 138 128 73 . 130 65 . . Shots Fired 1999 | 16 84 219 42 249 214 57 243 60 85 9 146 64 62 53 252 118 8 1 16 1 . . Gun 1698 | 16 84 219 42 249 201 57 243 42 29 . 103 64 50 44 156 74 7 1 16 1 . . Cannon 243 | . . . . . 13 . . 13 52 9 35 . 7 7 85 22 . . . . . . Launcher 24 | . . . . . . . . . 1 . 8 . . . 3 11 1 . . . . . Special 34 | . . . . . . . . 5 3 . . . 5 2 8 11 . . . . . . Kinetic 1894 | 16 84 219 42 249 214 57 226 43 81 9 138 64 57 51 241 96 7 . . . . . Thermal 29 | . . . . . . . 17 12 . . . . . . . . . . . . . . Explosive 7 | . . . . . . . . . . . 5 . . . . 2 . . . . . . Electromagnetic 35 | . . . . . . . . . 1 . 3 . . . 3 9 1 1 16 1 . . Robot Hit Streak 31 | 6 13 12 11 13 10 7 31 9 11 4 14 10 6 18 25 16 5 . 4 . . . Robot Miss Streak 9 | 5 3 8 4 9 8 2 6 4 9 1 5 2 2 4 4 5 2 . 2 1 . . Penetration Max 3 | . . . . . . . 1 . . . . 1 3 . 3 1 . . . . . . Secondary Targets 35 | . . 7 1 2 6 3 4 . 3 . 2 3 2 1 . 1 . . . . . . Max Gunslinging Chain 2 | . . 1 1 1 2 1 1 . 1 . 1 1 1 1 . 1 . . . . . . Shots Hit Robots 1236 | 8 53 124 23 153 99 32 153 38 58 7 72 44 77 37 159 83 5 . 11 . . . Core Hits 605 | 3 22 57 8 73 40 15 51 16 45 2 53 20 39 13 77 60 5 . 6 . . . Critical Kills 23 | . . . . . . . . 1 . . 2 1 5 1 12 1 . . . . . . Critical Parts Destroyed 35 | . . . 1 . 1 . . . . . 2 5 4 2 15 5 . . . . . . Critical Strikes 80 | . . . 1 . 1 . 2 2 4 1 6 6 13 3 31 10 . . . . . . Burn 1 | . . . . . . . 1 . . . . . . . . . . . . . . . Destroy 59 | . . . 1 . 1 . 1 1 . . 4 6 9 3 27 6 . . . . . . Blast 17 | . . . . . . . . 1 4 1 2 . 1 . 4 4 . . . . . . Impale 3 | . . . . . . . . . . . . . 3 . . . . . . . . . Melee Attacks 87 | . . . . . . . 12 4 9 . 3 2 56 1 . . . . . . . . Impact . | . . . . . . . . . . . . . . . . . . . . . . . Slashing . | . . . . . . . . . . . . . . . . . . . . . . . Piercing 87 | . . . . . . . 12 4 9 . 3 2 56 1 . . . . . . . . Sneak Attacks . | . . . . . . . . . . . . . . . . . . . . . . . Combat Hostiles . | . . . . . . . . . . . . . . . . . . . . . . . Follow-up Attacks . | . . . . . . . . . . . . . . . . . . . . . . . Damage Inflicted 26427 | 89 502 1184 181 1582 1665 619 2814 798 1678 226 2328 1020 2881 340 3472 4114 563 . 340 . . 31 Guns 16588 | 89 502 1184 181 1582 1647 619 2814 539 620 . 1003 968 650 200 2024 1669 89 . 208 . . . Cannons 4357 | . . . . . . . . 259 1058 226 416 . 113 140 1339 806 . . . . . . Explosions 2749 | . . . . . 18 . . . . . 868 . . . 109 1598 24 . 132 . . . Melee 2159 | . . . . . . . . . . . 41 . 2118 . . . . . . . . . Ramming 574 | . . . . . . . . . . . . 52 . . . 41 450 . . . . 31 Kinetic 20345 | 89 502 1184 181 1582 1647 619 2578 642 1678 226 1419 968 763 340 3363 2475 89 . . . . . Thermal 1290 | . . . . . . . 236 156 . . . . . . . 766 . . 132 . . . Explosive 919 | . . . . . 18 . . . . . 546 . . . . 355 . . . . . . Electromagnetic 1140 | . . . . . . . . . . . 322 . . . 109 477 24 . 208 . . . Impact . | . . . . . . . . . . . . . . . . . . . . . . . Slashing . | . . . . . . . . . . . . . . . . . . . . . . . Piercing 2159 | . . . . . . . . . . . 41 . 2118 . . . . . . . . . Highest Corruption 31 | . . . . 3 3 3 6 1 3 3 31 . . . 6 2 13 13 13 13 4 25 Average Corruption 5 | . . . . 2 3 3 5 1 1 3 12 . . . 4 2 2 13 13 13 3 6 Corruption Purged . | . . . . . . . . . . . . . . . . . . . . . . . Corruption Blocked . | . . . . . . . . . . . . . . . . . . . . . . . Effects 294 | . . . . 34 21 7 41 2 17 3 36 . . . 55 2 12 12 27 7 3 15 Message Errors 68 | . . . . 9 3 1 7 . 3 1 9 . . . 17 . . 2 10 1 . 5 Matter Fused 54 | . . . . 8 1 4 9 . 1 . 7 . . . 9 . 1 4 6 1 . 3 Heat Flow Errors 40 | . . . . 5 3 1 5 . 3 . 1 . . . 4 2 4 3 3 3 1 2 Energy Discharges 33 | . . . . 4 4 1 7 1 2 1 3 . . . 7 . . . 2 1 . . Parts Rejected 1 | . . . . . . . . . . . 1 . . . . . . . . . . . Data Loss (minor) 42 | . . . . 2 3 . 5 . 6 1 6 . . . 6 . 4 1 4 . 2 2 Data Loss (major) 15 | . . . . . 2 . 2 1 . . 2 . . . 4 . 1 1 1 . . 1 Misfires 14 | . . . . . 1 . 1 . 2 . 4 . . . 3 . 1 1 1 . . . Alerts 10 | . . . . 1 . . 2 . . . 3 . . . 3 . . . . . . 1 Misdirections 3 | . . . . . . . . . . . . . . . . . 1 . . 1 . 1 Weapon Failures 14 | . . . . 5 4 . 3 . . . . . . . 2 . . . . . . . Overload Shots . | . . . . . . . . . . . . . . . . . . . . . . . Overflow Damage 564 | . . . . . . . . 20 14 . 12 . 45 . 32 319 10 . 106 . . 6 Projectiles 157 | . . . . . . . . 20 14 . 6 . . . 26 91 . . . . . . Explosions 346 | . . . . . . . . . . . 6 . . . 6 228 . . 106 . . . Melee 61 | . . . . . . . . . . . . . 45 . . . 10 . . . . 6 Knockbacks 25 | . . . . . . . . 1 5 1 . 1 1 . 9 7 . . . . . . Impact 1 | . . . . . . . . . . . . 1 . . . . . . . . . . Kinetic 20 | . . . . . . . . 1 4 1 . . 1 . 7 6 . . . . . . Secondary 4 | . . . . . . . . . 1 . . . . . 2 1 . . . . . . Self-Inflicted Damage 310 | . . . . . 87 . . . . . 172 . . . . . . . 36 . . 15 Shots 7 | . . . . . 2 . . . . . 4 . . . . . . . 1 . . . Rammed 57 | . . . . . . . . . . . . 9 . . . 2 45 . . . . 1 Targets Rammed 58 | . . . . . . . . . . . . 10 . . . 2 45 . . . . 1 Kicked . | . . . . . . . . . . . . . . . . . . . . . . . Crushed 1 | . . . . . . . . . . . . 1 . . . . . . . . . . Highest Temperature 362 | . 83 194 262 362 229 294 321 56 254 93 357 134 143 40 347 312 240 129 128 220 169 51 Average Temperature 78 | . 17 46 114 111 81 64 119 25 69 43 78 44 60 19 86 59 113 66 64 82 96 43 Received Heat Transfer 5567 | . 210 198 156 279 378 90 576 30 576 . 540 252 210 18 471 720 431 . . 187 164 81 Effects 10 | . . . . 4 . . . . . . 1 . . . 3 2 . . . . . . Shutdowns 2 | . . . . . . . . . . . 1 . . . 1 . . . . . . . Energy Bleed 2 | . . . . 1 . . . . . . . . . . 1 . . . . . . . Interference 5 | . . . . 3 . . . . . . . . . . . 2 . . . . . . Damage (minor) 1 | . . . . . . . . . . . . . . . 1 . . . . . . . Siege Activations 2 | . . . . . . . . . . . . . . . . 2 . . . . . . Total Turns 42 | . . . . . . . . . . . . . . . . 42 . . . . . . Longest Duration 32 | . . . . . . . . . . . . . . . . 32 . . . . . . Martial Activations . | . . . . . . . . . . . . . . . . . . . . . . . Shielding Activations . | . . . . . . . . . . . . . . . . . . . . . . . Robots Disrupted . | . . . . . . . . . . . . . . . . . . . . . . . Combat Hostiles . | . . . . . . . . . . . . . . . . . . . . . . . Robots Corrupted 3 | . . . . . . . . . . . . . . . . 1 1 . . . . 1 Combat Hostiles 2 | . . . . . . . . . . . . . . . . 1 1 . . . . . Parts Fried 1 | . . . . . . . . . . . . . . . . 1 . . . . . . Impact Corruptions 3 | . . . . . . . . . . . . . . . . . 2 . . . . 1 Robots Melted . | . . . . . . . . . . . . . . . . . . . . . . . Combat Hostiles . | . . . . . . . . . . . . . . . . . . . . . . . Parts Melted . | . . . . . . . . . . . . . . . . . . . . . . . Heat Transferred 1514 | . . . . . . . 518 296 . . . . . . . 550 . . 150 . . . Parts Sabotaged . | . . . . . . . . . . . . . . . . . . . . . . . Parts Stolen . | . . . . . . . . . . . . . . . . . . . . . . . Parts Stripped . | . . . . . . . . . . . . . . . . . . . . . . . Power Chain Reactions 3 | . . . . . . . . . 1 . . . . . . 1 . . 1 . . . Alert | -11 -10 -9 -9 -8 -8 -8 -8 -7 -7 -7 -7 -6 -6 -5 -5 -4 -4 -4 -4 -3 -3 -3 ------- Run | Yrd Mat Mat Min Mat Gar Mat Gar Fac Gar Fac Gar Fac Gar Fac Gar Fac Upp Upp Zhi Pro Res Qua Maximum Alert Level 5 | . . 2 . . 3 3 5 3 3 1 4 2 3 2 5 4 . . . . 2 1 Low Security (%) 24 | 100 100 66 100 100 8 . . . . . . . . . . . . . . . . 93 Level 1 13 | . . 28 . . 33 . . 31 46 100 10 29 12 . 1 . . . . . 16 6 Level 2 21 | . . 4 . . 22 58 3 57 36 . 14 70 31 100 8 . . . . . 83 . Level 3 22 | . . . . . 36 41 10 11 16 . 73 . 56 . 20 87 . . . . . . Level 4 15 | . . . . . . . 70 . . . 1 . . . 57 12 . . . . . . Level 5 3 | . . . . . . . 14 . . . . . . . 12 . . . . . . . High Security . | . . . . . . . . . . . . . . . . . . . . . . . Max Security . | . . . . . . . . . . . . . . . . . . . . . . . Peak Influence 1831 | 5 34 429 192 179 986 986 1767 927 762 399 1132 594 949 571 1831 1208 . . . . 617 213 Initial 961 | . 3 . 162 31 113 480 634 927 230 399 228 594 263 497 385 961 . . . . 609 213 Average 611 | 1 4 190 132 35 513 650 1268 476 478 366 753 458 698 471 1223 949 . . . . 552 89 Influence Increases 11384 | 10 136 827 70 548 913 646 1363 145 602 38 1044 253 746 274 1756 926 39 24 12 84 660 268 Destroy 0b10 Robot/C 5355 | . 80 540 60 360 460 320 740 60 340 20 600 120 320 160 785 375 15 . . . . . Destroy 0b10 Robot/NC 257 | 10 15 20 . 40 5 25 . 15 5 5 . . 40 . 29 32 . . 12 . . 4 Destroy Leader 650 | . 26 116 10 100 20 74 30 34 30 12 30 10 30 30 46 52 . . . . . . Allied During Kill 842 | . . . . . 50 220 120 . 8 . 8 . 18 16 250 152 . . . . . . Successful Hack 85 | . . . . . 7 5 14 . 24 . . 17 . . 6 . . . . . 12 . Disable Machine 330 | . . . . . . . 30 30 75 . . 45 . 30 . 60 . . . . . 60 Anti-Garrison Action 1864 | . . . . . 250 . 300 . 50 . 300 . 300 . 551 113 . . . . . . Destroy Structure 531 | . . 1 . 3 121 2 99 6 25 1 61 1 38 8 59 106 . . . . . . Advance Influence 600 | . . . . . . . . . . . . . . . . . . . . . 600 . Partial Spotted 75 | . . 15 . . . . . . . . . . . . . . . . . . 12 48 Lose Combat Pursuer 795 | . 15 135 . 45 . . 30 . 45 . 45 60 . 30 30 36 24 24 . 84 36 156 Influence Decreases 11334 | 5 141 410 405 455 102 656 572 1583 169 473 239 1008 174 672 476 1616 863 267 86 70 295 597 Entered New Map 5488 | . 2 . 255 51 62 506 342 840 99 363 99 538 114 452 166 870 423 61 74 . 5 166 Time Decay 3630 | 5 139 370 140 374 . 130 . 368 . 110 . 440 . 190 . 286 350 206 12 30 140 340 Search Patrol Dispatched 150 | . . . . . . . . . . . . . . . . . . . . . 150 . Lost Part 891 | . . 40 10 30 40 . 90 . 50 . 120 30 20 10 70 160 90 . . 40 . 91 Lost Ally 800 | . . . . . . 20 140 . 20 . 20 . 40 20 240 300 . . . . . . Purge Threat 375 | . . . . . . . . 375 . . . . . . . . . . . . . . Squads Dispatched 36 | . . 1 . 4 . 3 . 2 . . . 4 . 3 . 13 . . . 1 2 3 Investigation 3 | . . . . 1 . . . . . . . 1 . . . . . . . . 1 . Extermination 5 | . . . . . . . . 1 . . . 1 . . . . . . . . 1 2 Reinforcement 10 | . . 1 . . . 1 . 1 . . . 2 . 1 . 3 . . . . . 1 Assault 10 | . . . . . . . . . . . . . . 1 . 8 . . . 1 . . Garrison 8 | . . . . 3 . 2 . . . . . . . 1 . 2 . . . . . . Intercept . | . . . . . . . . . . . . . . . . . . . . . . . Searches Triggered 1 | . . . . . . . . . . . . . . . . . . . . . 1 . Construction Impeded 1 | . . . . . . . . . . . . . . . . 1 . . . . . . Haulers Reinforced 2 | . . . . . . . . . . . . 1 . . . 1 . . . . . . Active Scanning Responses . | . . . . . . . . . . . . . . . . . . . . . . . Cargo Convoy Interrupts . | . . . . . . . . . . . . . . . . . . . . . . . Stealth | -11 -10 -9 -9 -8 -8 -8 -8 -7 -7 -7 -7 -6 -6 -5 -5 -4 -4 -4 -4 -3 -3 -3 --------- Run | Yrd Mat Mat Min Mat Gar Mat Gar Fac Gar Fac Gar Fac Gar Fac Gar Fac Upp Upp Zhi Pro Res Qua Distress Signals 13 | . . 4 . 2 . 1 . . 1 . . 1 . . . 1 . . . 1 2 . Communications Jammed . | . . . . . . . . . . . . . . . . . . . . . . . Distress Signals . | . . . . . . . . . . . . . . . . . . . . . . . Times Spotted 451 | . 12 43 3 28 24 17 38 5 23 2 33 11 19 9 47 51 10 2 . 21 15 38 Peak Tracking Total 14 | . 3 6 2 5 7 6 8 1 8 2 9 4 8 4 7 8 7 2 . 11 11 14 Tactical Retreats 34 | . 1 6 . 2 . . 2 . 2 . 2 3 . 1 1 2 3 1 . 4 1 3 Traps | -11 -10 -9 -9 -8 -8 -8 -8 -7 -7 -7 -7 -6 -6 -5 -5 -4 -4 -4 -4 -3 -3 -3 ------- Run | Yrd Mat Mat Min Mat Gar Mat Gar Fac Gar Fac Gar Fac Gar Fac Gar Fac Upp Upp Zhi Pro Res Qua Traps Triggered 21 | . . . . 3 1 . 4 1 2 . 7 . . . 1 . . . . . 2 . Indirectly 3 | . . . . . . . . . . . 2 . . . 1 . . . . . . . Trap Hack Attempts . | . . . . . . . . . . . . . . . . . . . . . . . Triggered . | . . . . . . . . . . . . . . . . . . . . . . . Disarmed . | . . . . . . . . . . . . . . . . . . . . . . . Reprogrammed . | . . . . . . . . . . . . . . . . . . . . . . . Reused . | . . . . . . . . . . . . . . . . . . . . . . . Traps Extracted . | . . . . . . . . . . . . . . . . . . . . . . . Installed . | . . . . . . . . . . . . . . . . . . . . . . . Triggered . | . . . . . . . . . . . . . . . . . . . . . . . Machines | -11 -10 -9 -9 -8 -8 -8 -8 -7 -7 -7 -7 -6 -6 -5 -5 -4 -4 -4 -4 -3 -3 -3 ---------- Run | Yrd Mat Mat Min Mat Gar Mat Gar Fac Gar Fac Gar Fac Gar Fac Gar Fac Upp Upp Zhi Pro Res Qua Machines Disabled 54 | . . . . . 7 . 7 2 6 . 5 3 3 2 4 6 . 1 3 . . 5 Max in Single Turn 5 | . . . . . 2 . 2 1 2 . 1 1 1 1 1 5 . 1 1 . . 1 Garrison Access 3 | . . . . . . . . . . . . . . . . 2 . . . . . 1 Garrison Relay 17 | . . . . . 3 . 3 . 2 . 2 . 3 . 4 . . . . . . . Phase Generator 3 | . . . . . 1 . 1 . . . 1 . . . . . . . . . . . Machines Repaired . | . . . . . . . . . . . . . . . . . . . . . . . Machines Dismantled 5 | . . . . . . . . . . . . . . . . . . . . . . 5 Machines Sabotaged . | . . . . . . . . . . . . . . . . . . . . . . . Overloaded Fab Kills . | . . . . . . . . . . . . . . . . . . . . . . . Hacking | -11 -10 -9 -9 -8 -8 -8 -8 -7 -7 -7 -7 -6 -6 -5 -5 -4 -4 -4 -4 -3 -3 -3 --------- Run | Yrd Mat Mat Min Mat Gar Mat Gar Fac Gar Fac Gar Fac Gar Fac Gar Fac Upp Upp Zhi Pro Res Qua Machines Accessed 56 | . 2 3 . 4 2 3 2 4 2 1 1 5 3 3 3 1 . 1 4 . 5 7 Terminals 37 | . 1 3 . 2 2 2 2 1 2 . 1 3 3 2 3 1 . . . . 3 6 Fabricators 3 | . . . . . . . . 1 . . . . . . . . . . . . 2 . Repair Stations . | . . . . . . . . . . . . . . . . . . . . . . . Recycling Units 4 | . 1 . . 1 . . . 1 . . . 1 . . . . . . . . . . Scanalyzers . | . . . . . . . . . . . . . . . . . . . . . . . Garrison Access 7 | . . . . 1 . 1 . 1 . 1 . 1 . 1 . . . . . . . 1 Total Hacks 127 | . 8 12 . 14 2 5 3 7 2 1 3 11 9 4 5 2 . 1 17 . 14 7 Successful 47 | . 3 . . 5 2 2 1 3 2 1 . 3 1 1 2 . . 1 17 . 2 1 Failed 80 | . 5 12 . 9 . 3 2 4 . . 3 8 8 3 3 2 . . . . 12 6 Catastrophic 20 | . 1 3 . 1 . 1 . . . . . 1 2 1 1 . . . . . 5 4 Database Lockouts . | . . . . . . . . . . . . . . . . . . . . . . . Manual 26 | . 5 8 . 2 . 4 . . . . . 2 . 3 . . . . . . 2 . Terminals 79 | . 5 12 . 8 2 4 3 2 2 . 3 7 9 3 5 2 . . . . 6 6 Fabricators 11 | . . . . . . . . 3 . . . . . . . . . . . . 8 . Repair Stations . | . . . . . . . . . . . . . . . . . . . . . . . Recycling Units 11 | . 3 . . 4 . . . 1 . . . 3 . . . . . . . . . . Scanalyzers . | . . . . . . . . . . . . . . . . . . . . . . . Garrison Access 8 | . . . . 2 . 1 . 1 . 1 . 1 . 1 . . . . . . . 1 Terminal Hacks 29 | . . . . 1 2 . 1 . 2 . . 1 1 . 2 . . 1 17 . 1 . Record 5 | . . . . . . . . . . . . . . . . . . . 5 . . . Part Schematic 4 | . . . . . . . . . . . . . . . . . . . 4 . . . Robot Analysis 5 | . . . . . . . . . . . . 1 . . . . . . 4 . . . Prototype ID Bank 4 | . . . . . . . . . . . . . . . . . . . 4 . . . Open Door 4 | . . . . . 1 . . . . . . . 1 . 1 . . 1 . . . . Level Access Points 1 | . . . . 1 . . . . . . . . . . . . . . . . . . Branch Access Points 1 | . . . . . . . . . . . . . . . . . . . . . 1 . Emergency Access Points 3 | . . . . . . . 1 . 1 . . . . . 1 . . . . . . . Garrison Registry 2 | . . . . . 1 . . . 1 . . . . . . . . . . . . . Fabricator Hacks 2 | . . . . . . . . 1 . . . . . . . . . . . . 1 . Network Status 2 | . . . . . . . . 1 . . . . . . . . . . . . 1 . Repair Station Hacks . | . . . . . . . . . . . . . . . . . . . . . . . Recycling Unit Hacks 5 | . 2 . . 2 . . . 1 . . . . . . . . . . . . . . Report Inventory 3 | . 1 . . 1 . . . 1 . . . . . . . . . . . . . . Retrieve Components 2 | . 1 . . 1 . . . . . . . . . . . . . . . . . . Scanalyzer . | . . . . . . . . . . . . . . . . . . . . . . . Garrison Access Hacks 7 | . . . . 1 . 1 . 1 . 1 . 1 . 1 . . . . . . . 1 Unlock Access 6 | . . . . 1 . 1 . 1 . 1 . 1 . 1 . . . . . . . . Seal Access 1 | . . . . . . . . . . . . . . . . . . . . . . 1 Unauthorized Hacks 4 | . 1 . . 1 . 1 . . . . . 1 . . . . . . . . . . Terminals 4 | . 1 . . 1 . 1 . . . . . 1 . . . . . . . . . . Botnet 4 | . 1 . . 1 . 1 . . . . . 1 . . . . . . . . . . Fabricators . | . . . . . . . . . . . . . . . . . . . . . . . Repair Stations . | . . . . . . . . . . . . . . . . . . . . . . . Recycling Units . | . . . . . . . . . . . . . . . . . . . . . . . Scanalyzers . | . . . . . . . . . . . . . . . . . . . . . . . Garrison Access . | . . . . . . . . . . . . . . . . . . . . . . . Data Cores Recovered . | . . . . . . . . . . . . . . . . . . . . . . . Used . | . . . . . . . . . . . . . . . . . . . . . . . Hacking Detections 41 | . 2 3 . 3 1 2 1 4 1 . 1 4 3 3 3 1 . . . . 4 5 Full Trace Events 7 | . 2 . . 1 . . . . . . 1 1 1 . . . . . . . 1 . Feedback Events . | . . . . . . . . . . . . . . . . . . . . . . . Feedback Blocked . | . . . . . . . . . . . . . . . . . . . . . . . Robot Schematics Acquired . | . . . . . . . . . . . . . . . . . . . . . . . Robots Built . | . . . . . . . . . . . . . . . . . . . . . . . Authchips . | . . . . . . . . . . . . . . . . . . . . . . . Time . | . . . . . . . . . . . . . . . . . . . . . . . Total Robot Build Rating . | . . . . . . . . . . . . . . . . . . . . . . . Part Schematics Acquired 4 | . . . . . . . . . . . . . . . . . . . 4 . . . Parts Built . | . . . . . . . . . . . . . . . . . . . . . . . Authchips . | . . . . . . . . . . . . . . . . . . . . . . . Time . | . . . . . . . . . . . . . . . . . . . . . . . Total Part Build Rating . | . . . . . . . . . . . . . . . . . . . . . . . Parts Repaired . | . . . . . . . . . . . . . . . . . . . . . . . Time . | . . . . . . . . . . . . . . . . . . . . . . . Parts Recycled . | . . . . . . . . . . . . . . . . . . . . . . . Recycled Matter . | . . . . . . . . . . . . . . . . . . . . . . . Retrieved Matter . | . . . . . . . . . . . . . . . . . . . . . . . Retrieved Components 9 | . 7 . . 2 . . . . . . . . . . . . . . . . . . Parts Scanalyzed . | . . . . . . . . . . . . . . . . . . . . . . . Part Schematics Acquired . | . . . . . . . . . . . . . . . . . . . . . . . Parts Damaged . | . . . . . . . . . . . . . . . . . . . . . . . Bothacking | -11 -10 -9 -9 -8 -8 -8 -8 -7 -7 -7 -7 -6 -6 -5 -5 -4 -4 -4 -4 -3 -3 -3 ------------ Run | Yrd Mat Mat Min Mat Gar Mat Gar Fac Gar Fac Gar Fac Gar Fac Gar Fac Upp Upp Zhi Pro Res Qua Used RIF Installer 6 | . . . . . 1 . 1 . 1 . 1 . 1 . 1 . . . . . . . Threat Obfuscator 1 | . . . . . . . . . . . . . . . 1 . . . . . . . Robot Detection 1 | . . . . . . . . . . . 1 . . . . . . . . . . . Patrol Navigation 1 | . . . . . . . 1 . . . . . . . . . . . . . . . Program Shield 1 | . . . . . . . . . 1 . . . . . . . . . . . . . Autoassimilate 1 | . . . . . . . . . . . . . 1 . . . . . . . . . Robots Hacked 30 | . . . . . . . . 1 3 . . . 2 2 9 12 . 1 . . . . Non-combat 1 | . . . . . . . . 1 . . . . . . . . . . . . . . Combat 29 | . . . . . . . . . 3 . . . 2 2 9 12 . 1 . . . . Autoassimilated 11 | . . . . . . . . . . . . . . . 4 6 . 1 . . . . Robot Hacks Applied 21 | . . . . . . . . 3 3 . . . 2 2 5 6 . . . . . . parse_system 2 | . . . . . . . . . . . . . . . 1 1 . . . . . . purge_threat 3 | . . . . . . . . 3 . . . . . . . . . . . . . . find_shortcuts 1 | . . . . . . . . . . . . . . . . 1 . . . . . . overload_power 1 | . . . . . . . . . . . . . . . . 1 . . . . . . amplify_resonance 2 | . . . . . . . . . 2 . . . . . . . . . . . . . go_dormant 1 | . . . . . . . . . . . . . . . . 1 . . . . . . overwrite_iff 1 | . . . . . . . . . . . . . . . 1 . . . . . . . formatsys_high 10 | . . . . . . . . . 1 . . . 2 2 3 2 . . . . . . Relay Couplers Released 75 | . . . . . 12 . 17 . 9 . 9 . 11 . 16 1 . . . . . . Machine Destruction 71 | . . . . . 12 . 13 . 9 . 9 . 11 . 16 1 . . . . . . Programmers 4 | . . . . . . . 4 . . . . . . . . . . . . . . . Attached 22 | . . . . . . . . 2 . . . . 7 . 7 3 2 . . 1 . . Fabnet Peak Effective % . | . . . . . . . . . . . . . . . . . . . . . . . Robots Rewired 17 | . . . . . 7 . . . . . . . . . 10 . . . . . . . Allies Hacked . | . . . . . . . . . . . . . . . . . . . . . . . Hacks Repelled . | . . . . . . . . . . . . . . . . . . . . . . . Allies | -11 -10 -9 -9 -8 -8 -8 -8 -7 -7 -7 -7 -6 -6 -5 -5 -4 -4 -4 -4 -3 -3 -3 -------- Run | Yrd Mat Mat Min Mat Gar Mat Gar Fac Gar Fac Gar Fac Gar Fac Gar Fac Upp Upp Zhi Pro Res Qua Total Allies 44 | . . . . . 8 . . . 1 . 1 . 3 2 20 8 . 1 . . . . Largest Group 10 | . . . . . 8 8 7 . 1 . 1 . 2 2 10 9 . 1 1 1 . . Highest-Rated Group 382 | . . . . . 156 156 141 . 16 . 95 . 78 58 382 364 . 64 64 64 . . Highest-Rated Ally 95 | . . . . . 31 31 31 . 16 . 95 . 46 41 51 58 . 64 64 64 . . Total Orders 6 | . . . . . 2 . . . . . . . . . 2 . . . 2 . . . STAY 3 | . . . . . 1 . . . . . . . . . 1 . . . 1 . . . FOLLOW 3 | . . . . . 1 . . . . . . . . . 1 . . . 1 . . . Ally Attacks 368 | . . . . . 10 54 62 . 11 . 6 . 22 16 127 56 . . . 4 . . Total Damage 8759 | . . . . . 154 765 1039 . 130 . 156 . 637 204 3655 1830 . . . 189 . . Kills 69 | . . . . . 4 11 10 . 2 . 3 . 4 3 21 11 . . . . . . Allies Corrupted 1 | . . . . . . . 1 . . . . . . . . . . . . . . . Allies Melted . | . . . . . . . . . . . . . . . . . . . . . . . Intel | -11 -10 -9 -9 -8 -8 -8 -8 -7 -7 -7 -7 -6 -6 -5 -5 -4 -4 -4 -4 -3 -3 -3 ------- Run | Yrd Mat Mat Min Mat Gar Mat Gar Fac Gar Fac Gar Fac Gar Fac Gar Fac Upp Upp Zhi Pro Res Qua Active Infowar (turns) 1630 | 5 58 . . . . . . . . . . . . . . . . 368 201 . 188 810 Optics 995 | . . . . . . . . . . . . . . . . . . . . . 185 810 IFF 1468 | . . . . . . . . . . . . . . . . . . 368 201 . 184 715 Seismic 63 | 5 58 . . . . . . . . . . . . . . . . . . . . . Jamming 585 | . . . . . . . . . . . . . . . . . . . . . . 585 Robot Analysis Total 5 | . . . . . . . . . . . . 1 . . . . . . 4 . . . Derelict Logs Recovered 1 | . . . . . . . . . . . . . . . . . 1 . . . . . Drone Launches . | . . . . . . . . . . . . . . . . . . . . . . . Drone Recoveries . | . . . . . . . . . . . . . . . . . . . . . . . Exploration | -11 -10 -9 -9 -8 -8 -8 -8 -7 -7 -7 -7 -6 -6 -5 -5 -4 -4 -4 -4 -3 -3 -3 ------------- Run | Yrd Mat Mat Min Mat Gar Mat Gar Fac Gar Fac Gar Fac Gar Fac Gar Fac Upp Upp Zhi Pro Res Qua Turns Passed 19433 | 117 940 1088 295 1348 1182 275 1565 847 850 220 1213 1085 1608 392 2484 625 780 421 838 152 298 810 Spaces Moved 9876 | 55 399 475 156 545 504 145 699 351 331 155 548 414 810 186 1187 245 352 467 177 306 481 888 Core 571 | 10 . . . . . . . . . . . . . . . . 90 428 . . . 43 Treads 6668 | 45 399 475 156 545 504 145 592 346 150 . 200 414 572 186 1187 245 262 39 177 29 . . Legs . | . . . . . . . . . . . . . . . . . . . . . . . Wheels 1034 | . . . . . . . 107 5 181 155 348 . 238 . . . . . . . . . Hover 1071 | . . . . . . . . . . . . . . . . . . . . . 226 845 Flight 532 | . . . . . . . . . . . . . . . . . . . . 277 255 . Fastest Speed 20 | 50 160 160 160 160 153 153 150 160 160 125 110 163 120 160 160 160 50 50 160 20 32 43 Average Speed 144 | 140 171 160 160 192 163 153 170 203 202 130 169 221 149 160 160 160 164 59 174 41 49 46 Slowest Speed 250 | 160 240 160 160 240 246 153 245 240 240 180 245 245 165 160 240 160 240 250 240 160 110 106 Overloaded Moves 91 | . . . . . . . . . . . . . . . . . . . . 91 . . Propulsion Burnouts . | . . . . . . . . . . . . . . . . . . . . . . . Robots Hopped 3 | . . . . . . . . . . . . . . . . . . . . 3 . . Potential Cave-ins 5 | . . . . . . . . . . . . . . . . . . . . . . 5 Cave-ins Triggered 1 | . . . . . . . . . . . . . . . . . . . . . . 1 Teleports 1 | . . . . . . . . . . . . . . . . . . . . . . 1 Exploration Rate (%) 43 | 4 64 48 35 35 71 22 75 12 50 5 72 10 56 6 89 9 62 53 62 67 18 69 Regions Visited 22 Branch Regions 6 Pre-discovered Areas 3 | . . . . . . . . . . . . . . . . . . . 3 . . . Known Exits Taken 7 | . . . . 1 . 1 . 1 . 1 . 1 . 1 . . . . . . 1 . Unknown Exits Taken 9 | 1 1 1 1 . . . . . . . . . . . . 1 1 1 1 1 . . Scrap Searched 4 | . . . 1 . . . . . . . . . . . . . . 2 . 1 . . Spaces Dug 14 | . . . . . 2 . 1 3 . . . 1 7 . . . . . . . . . Terrain Destroyed 377 | . . . . . 126 . 79 3 1 1 92 1 8 4 12 50 . . . . . . Melee 12 | . . . . . . . 1 3 . . . 1 7 . . . . . . . . . Projectile 37 | . . . . . 3 . 8 . 1 1 3 . . 2 11 8 . . . . . . AOE 324 | . . . . . 123 . 70 . . . 89 . . . . 42 . . . . . . Terrain Rammed . | . . . . . . . . . . . . . . . . . . . . . . . Walls Destroyed . | . . . . . . . . . . . . . . . . . . . . . . . Machines Disabled . | . . . . . . . . . . . . . . . . . . . . . . . Actions | -11 -10 -9 -9 -8 -8 -8 -8 -7 -7 -7 -7 -6 -6 -5 -5 -4 -4 -4 -4 -3 -3 -3 --------- Run | Yrd Mat Mat Min Mat Gar Mat Gar Fac Gar Fac Gar Fac Gar Fac Gar Fac Upp Upp Zhi Pro Res Qua Total 13592 | 81 587 680 177 728 786 180 912 431 421 169 718 527 1062 232 1594 367 518 606 697 333 545 1241 Wait 1544 | . 109 94 . 66 30 6 42 9 . . 14 62 29 . 76 23 110 129 473 4 13 255 Move 9849 | 54 398 474 155 544 503 145 698 350 329 154 547 413 809 186 1186 244 351 466 176 300 480 887 Hop 2 | . . . . . . . . . . . . . . . . . . . . 2 . . Pick Up 306 | 11 20 14 4 20 17 2 16 11 10 4 17 7 44 10 49 5 . . 15 5 11 14 Fast Attach 54 | . . 2 . 1 . . 3 2 5 1 8 2 4 . 5 . . 9 . . 9 3 Attach 188 | 7 2 7 2 7 11 . 14 7 7 1 15 3 22 4 22 17 5 . 11 7 11 6 Detach 44 | . . . . . 4 . 5 . 2 1 2 . 6 1 7 1 . . 8 . 5 2 Swap 110 | . 6 4 . 10 19 3 6 4 6 . 6 5 12 3 15 4 . . . . 4 3 Drop 256 | 1 10 12 1 13 14 5 9 8 11 5 11 6 46 3 48 2 1 2 3 14 12 19 Fire 806 | 8 42 73 15 67 69 19 107 36 42 3 61 17 33 24 104 68 6 . 11 1 . . Melee 87 | . . . . . . . 12 4 9 . 3 2 56 1 . . . . . . . . Ram 1 | . . . . . . . . . . . . . . . . . . . . . . 1 Kick . | . . . . . . . . . . . . . . . . . . . . . . . Crush 57 | . . . . . . . . . . . . 10 . . . 2 45 . . . . . Escape Stasis 35 | . . . . . . . . . . . 34 . . . . . . . . . . 1 Rewire 203 | . . . . . 119 . . . . . . . 1 . 82 1 . . . . . . Trap . | . . . . . . . . . . . . . . . . . . . . . . . Miscellaneous 50 | . . . . . . . . . . . . . . . . . . . . . . 50 Route ------- -11/Scrapyard -10/Materials (discovered 3 exits: *Mat x2 / [*Min]) -9/Materials (discovered 2 exits: [*Min x2]) -9/Mines -8/Materials (discovered 4 exits: Fac x3 / Gar) -8/Garrison (discovered 3 exits: *Mat x3) -8/Materials -8/Garrison (discovered 4 exits: *Fac x3 / [*Mat]) -7/Factory -7/Garrison (discovered 3 exits: *Fac x3) -7/Factory -7/Garrison (discovered 3 exits: *Fac x3) -6/Factory -6/Garrison (discovered 2 exits: *Fac x2) -5/Factory (discovered 2 exits: *Fac / Gar) -5/Garrison (discovered 3 exits: *Fac x3) -4/Factory -4/Upper Caves -4/Upper Caves -4/Zhirov -3/Proximity Caves -3/Research (discovered 2 exits: *Qua x2) -3/Quarantine History --------- Turn | Location | Event 5 | -11/Scrapyard | Discovered new exit (range 15) 118 | -11/Scrapyard | Entered Materials 301 | -10/Materials | Build established: Mutant 463 | -10/Materials | Discovered new exit (range 6) 874 | -10/Materials | Discovered new exit (range 12) 911 | -10/Materials | Discovered new exit (range 10) 1058 | -10/Materials | Entered another Materials area 1058 | -9/Materials | Evolved 2 slots: Utility x1, Weapon x1 1266 | -9/Materials | Destroyed 7 combat bots 1358 | -9/Materials | Build established: Tank 1392 | -9/Materials | Discovered new exit (range 6) 1814 | -9/Materials | Discovered new exit (range 12) 2146 | -9/Materials | Entered Mines 2201 | -9/Mines | Found DCF Scrap (12 items) 2219 | -9/Mines | Assembled infested the area 2224 | -9/Mines | Assisted by a Guerilla fighting off Assembled 2424 | -9/Mines | Discovered new exit (range 3) 2441 | -9/Mines | Entered Materials 2441 | -8/Materials | Evolved 2 slots: Propulsion x1, Weapon x1 2482 | -8/Materials | Build established: Scavenger-Tank 2917 | -8/Materials | Garrison activated, responded to threat 3449 | -8/Materials | Identified exit to Factory 3644 | -8/Materials | Garrison activated, responded to threat 3780 | -8/Materials | Identified exit to Garrison 3789 | -8/Materials | Entered Garrison 3799 | -8/Garrison | Discovered new exit (range 74) 3799 | -8/Garrison | Discovered new exit (range 65) 3799 | -8/Garrison | Discovered new exit (range 31) 3845 | -8/Garrison | Triggered checkpoint 3884 | -8/Garrison | Garrison Relay disabled 4051 | -8/Garrison | Triggered checkpoint 4054 | -8/Garrison | Triggered checkpoint 4117 | -8/Garrison | Destroyed 8 combat bots 4121 | -8/Garrison | Lost 4 parts (1p1u2w) 4167 | -8/Garrison | Installed Relay Interface Framework 4265 | -8/Garrison | Triggered checkpoint 4346 | -8/Garrison | Destroyed 8 combat bots 4389 | -8/Garrison | Garrison Relay disabled 4511 | -8/Garrison | Phase Generator disabled 4544 | -8/Garrison | Garrison Relay disabled 4763 | -8/Garrison | Triggered checkpoint 4789 | -8/Garrison | Triggered checkpoint 4892 | -8/Garrison | Build established: Commander-Gunner 4902 | -8/Garrison | Rescued a captive Derelict 4970 | -8/Garrison | Identified exit to Materials 4971 | -8/Garrison | Entered Materials 4971 | -8/Materials | Accompanied by 8 allies 5100 | -8/Materials | Garrison activated, responded to threat 5246 | -8/Materials | Identified exit to Garrison 5246 | -8/Materials | Entered Garrison 5246 | -8/Garrison | Accompanied by 7 allies 5280 | -8/Garrison | Triggered checkpoint 5280 | -8/Garrison | Build established: Commander-Tank 5306 | -8/Garrison | Garrison Relay disabled 5402 | -8/Garrison | Triggered checkpoint 5477 | -8/Garrison | Lost 5 allies 5513 | -8/Garrison | Discovered exit to Factory (range 12) 5558 | -8/Garrison | Triggered checkpoint 5880 | -8/Garrison | Build established: Gunner 5920 | -8/Garrison | Triggered checkpoint 5952 | -8/Garrison | Garrison Relay disabled 6032 | -8/Garrison | Discovered exit to Factory (range 12) 6108 | -8/Garrison | Triggered checkpoint 6149 | -8/Garrison | Garrison Relay disabled 6164 | -8/Garrison | Core integrity fell below 50% 6208 | -8/Garrison | Lost 3 parts (2n1w) 6418 | -8/Garrison | Triggered checkpoint 6492 | -8/Garrison | Triggered checkpoint 6559 | -8/Garrison | Discovered new exit (range 5) 6672 | -8/Garrison | Discovered exit to Factory (range 10) 6713 | -8/Garrison | Expanded RIF knowledge: Patrol Navigation 6724 | -8/Garrison | Triggered checkpoint 6785 | -8/Garrison | Phase Generator disabled 6811 | -8/Garrison | Entered Factory 6811 | -7/Factory | Evolved 2 slots: Utility x2 7064 | -7/Factory | Build established: Bothacker-Tank 7620 | -7/Factory | Identified exit to Garrison 7658 | -7/Factory | Entered Garrison 7686 | -7/Garrison | Expanded RIF knowledge: Program Shield 7812 | -7/Garrison | Triggered checkpoint 8042 | -7/Garrison | Triggered checkpoint 8146 | -7/Garrison | Destroyed 12 combat bots 8146 | -7/Garrison | Lost 5 parts (3n2w) 8241 | -7/Garrison | Garrison Relay disabled 8325 | -7/Garrison | Discovered new exit (range 14) 8336 | -7/Garrison | Discovered new exit (range 12) 8336 | -7/Garrison | Discovered new exit (range 76) 8336 | -7/Garrison | Discovered new exit (range 68) 8379 | -7/Garrison | H-XX Assembler disabled 8472 | -7/Garrison | Triggered checkpoint 8508 | -7/Garrison | Identified exit to Factory 8508 | -7/Garrison | Entered Factory 8700 | -7/Factory | Identified exit to Garrison 8728 | -7/Factory | Entered Garrison 8860 | -7/Garrison | Triggered checkpoint 8905 | -7/Garrison | Triggered checkpoint 8918 | -7/Garrison | Destroyed 8 combat bots 8956 | -7/Garrison | Triggered checkpoint 8971 | -7/Garrison | Lost 7 parts (2p1n1u3w) 8997 | -7/Garrison | Discovered new exit (range 9) 9024 | -7/Garrison | Triggered checkpoint 9041 | -7/Garrison | Garrison Relay disabled 9078 | -7/Garrison | Identified exit to Factory 9252 | -7/Garrison | Core integrity fell below 50% 9293 | -7/Garrison | Lost 3 parts (1u2w) 9364 | -7/Garrison | Triggered checkpoint 9400 | -7/Garrison | System corruption reached 10% 9446 | -7/Garrison | Garrison Relay disabled 9501 | -7/Garrison | Discovered exit to Factory (range 10) 9585 | -7/Garrison | Build established: Bothacker-Gunner 9746 | -7/Garrison | Discovered exit to Factory (range 10) 9792 | -7/Garrison | Expanded RIF knowledge: Robot Detection 9909 | -7/Garrison | Phase Generator disabled 9940 | -7/Garrison | System corruption reached 30% 9941 | -7/Garrison | Entered Factory 9941 | -6/Factory | Evolved 2 slots: Propulsion x2 10245 | -6/Factory | Lost 3 parts (1n2w) 10981 | -6/Factory | Identified exit to Garrison 11026 | -6/Factory | Entered Garrison 11170 | -6/Garrison | Triggered checkpoint 11228 | -6/Garrison | Garrison Relay disabled 11302 | -6/Garrison | Rescued a captive Derelict 11354 | -6/Garrison | Triggered checkpoint 11500 | -6/Garrison | Triggered checkpoint 11527 | -6/Garrison | Garrison Relay disabled 11630 | -6/Garrison | Discovered new exit (range 8) 11637 | -6/Garrison | Identified exit to Factory 11817 | -6/Garrison | Build established: Botlord-Gunner 11832 | -6/Garrison | Triggered checkpoint 11858 | -6/Garrison | Garrison Relay disabled 11901 | -6/Garrison | Expanded RIF knowledge: Autoassimilate 12234 | -6/Garrison | Build established: Botlord-Tank 12553 | -6/Garrison | Discovered exit to Factory (range 12) 12634 | -6/Garrison | Entered Factory 12634 | -5/Factory | Accompanied by 1 ally 12634 | -5/Factory | Evolved 2 slots: Propulsion x1, Utility x1 12889 | -5/Factory | Discovered new exit (range 16) 12914 | -5/Factory | Identified exit to Factory 12934 | -5/Factory | First assault squad dispatched 12960 | -5/Factory | Garrison activated, responded to threat 13026 | -5/Factory | Identified exit to Garrison 13026 | -5/Factory | Entered Garrison 13026 | -5/Garrison | Accompanied by 2 allies 13038 | -5/Garrison | Spotted B-90 Cyclops 13104 | -5/Garrison | Triggered checkpoint 13166 | -5/Garrison | Garrison Relay disabled 13478 | -5/Garrison | Triggered checkpoint 13502 | -5/Garrison | Lost 5 allies 13612 | -5/Garrison | Discovered exit to Factory (range 10) 13638 | -5/Garrison | Build established: Bothacker-Tank 13762 | -5/Garrison | Triggered checkpoint 13778 | -5/Garrison | Garrison Relay disabled 14011 | -5/Garrison | Expanded RIF knowledge: Threat Obfuscation 14060 | -5/Garrison | Discovered exit to Factory (range 14) 14080 | -5/Garrison | Build established: Botlord-Tank 14114 | -5/Garrison | Triggered checkpoint 14141 | -5/Garrison | Garrison Relay disabled 14210 | -5/Garrison | Spotted Executioner 14210 | -5/Garrison | Spotted Executioner 14253 | -5/Garrison | Destroyed Executioner 14273 | -5/Garrison | Lost 4 allies 14273 | -5/Garrison | Destroyed Executioner 15105 | -5/Garrison | Discovered exit to Factory (range 10) 15142 | -5/Garrison | Triggered checkpoint 15204 | -5/Garrison | Triggered checkpoint 15218 | -5/Garrison | Garrison Relay disabled 15409 | -5/Garrison | Rescued a captive Derelict 15410 | -5/Garrison | Rescued a captive Derelict 15510 | -5/Garrison | Entered Factory 15510 | -4/Factory | Accompanied by 8 allies 15510 | -4/Factory | Evolved 2 slots: Utility x2 15760 | -4/Factory | First assault squad dispatched 15833 | -4/Factory | Garrison activated, responded to threat 15914 | -4/Factory | Lost 10 allies 15945 | -4/Factory | Lost 8 parts (1p1n1u5w) 15985 | -4/Factory | Garrison activated, responded to threat 16006 | -4/Factory | Lost 3 allies 16016 | -4/Factory | Lost 4 parts (1p1n1u1w) 16097 | -4/Factory | Lost 3 parts (1n1u1w) 16107 | -4/Factory | Discovered new exit (range 15) 16116 | -4/Factory | Lost 3 allies 16135 | -4/Factory | Entered Upper Caves 16316 | -4/Upper Caves | Build established: Hauler-Mutant 16525 | -4/Upper Caves | Attracted the attention of an 0b10 checkpoint 16535 | -4/Upper Caves | Learned Research emergency access door positions 16835 | -4/Upper Caves | Encountered an infested base 16871 | -4/Upper Caves | System corruption reached 10% 16901 | -4/Upper Caves | Lost 4 parts (4u) 16906 | -4/Upper Caves | Encountered a Warlord checkpoint 16912 | -4/Upper Caves | Discovered new exit (range 9) 16915 | -4/Upper Caves | Entered another Upper Caves area 17160 | -4/Upper Caves | Build established: Mutant 17319 | -4/Upper Caves | Discovered new exit (range 7) 17336 | -4/Upper Caves | Entered Zhirov 17336 | -4/Zhirov | Accompanied by 1 ally 17339 | -4/Zhirov | Discovered new exit (range 3) 17474 | -4/Zhirov | Learned location of Quarantine (-3) 17474 | -4/Zhirov | Learned location of Testing (-2) 17474 | -4/Zhirov | Learned location of Command (-1) 17548 | -4/Zhirov | Found Alien Artifact 17550 | -4/Zhirov | Identified Integrated Dissipator 17550 | -4/Zhirov | Installed Integrated Dissipator, increased core heat dissipation (+20) 17588 | -4/Zhirov | Found Alien Artifact 17637 | -4/Zhirov | Build established: Hauler-Mutant 18174 | -4/Zhirov | Entered Proximity Caves 18174 | -3/Proximity Caves | Accompanied by 1 ally 18176 | -3/Proximity Caves | Attracted the attention of an 0b10 outpost 18176 | -3/Proximity Caves | Spotter reported a threat 18177 | -3/Proximity Caves | Spotter reported a threat 18229 | -3/Proximity Caves | Spotter reported a threat 18280 | -3/Proximity Caves | Spotter reported a threat 18306 | -3/Proximity Caves | Spotted B-86 Titan 18311 | -3/Proximity Caves | Core integrity fell below 50% 18323 | -3/Proximity Caves | Discovered new exit (range 14) 18326 | -3/Proximity Caves | Entered Research 18326 | -3/Research | Evolved 2 slots: Power x1, Propulsion x1 18350 | -3/Research | Lost 4 parts (1p1n1u1w) 18576 | -3/Research | Search patrols dispatched 18600 | -3/Research | Identified exit to Quarantine 18624 | -3/Research | Entered Quarantine 18672 | -3/Quarantine | Found Alien Artifact 18785 | -3/Quarantine | Spotted Alpha 7 18904 | -3/Quarantine | Build established: Mutant 19203 | -3/Quarantine | Met incapacitated Sigix Warrior 19203 | -3/Quarantine | Lockdown squad dispatched 19241 | -3/Quarantine | Found Sigix Containment Pod 19277 | -3/Quarantine | Spotted Lightning 19279 | -3/Quarantine | Spotted Lightning 19280 | -3/Quarantine | Spotted Lightning 19288 | -3/Quarantine | System corruption reached 10% 19334 | -3/Quarantine | Found Alien Artifact 19334 | -3/Quarantine | Identified Terrabomb 19334 | -3/Quarantine | Used Terrabomb 19338 | -3/Quarantine | Found Terrabomb 19342 | -3/Quarantine | Identified Phase Redirector 19353 | -3/Quarantine | Identified Transdimensional Reconstructor 19353 | -3/Quarantine | Warped through subspace 19383 | -3/Quarantine | Lost 6 parts (2p2n1u1w) 19396 | -3/Quarantine | Crushed by falling debris 19413 | -3/Quarantine | Core integrity fell below 50% 19418 | -3/Quarantine | Core integrity fell below 20% 19434 | -3/Quarantine | Destroyed by S-43 Plague with Heavy Machine Gun Last Messages --------------- 19408_ C-55 Analyst calibrates the Wave Intensifier. 19409_ Penetrated by Slug. 19409_ Slug penetrates Wall. 19409_ Dropped Imp. Component Analysis Suite. 19410_ Dropped Med. Storage Unit. 19410_ Dropped Exp. Power Amplifier. 19411_ Dropped Enh. Force Lance. 19411_ Dropped Adv. Remote Datajack. 19412_ Penetrated by Slug. 19412_ Adv. Energy Well destroyed. 19412_ Acquired Adv. Remote Datajack. 19414_ M-28 Smith repairs S-43 Plague Xenon Bombardment Thruster. 19416_ S-43 Plague destroyed. 19418_ K-01 Serf collects debris. 19419_ Penetrated by Slug. 19419_ Slug penetrates Wall. 19424_ K-01 Serf cleans the Quantum Separator. Map ----- +----------------------------------------------------+ | ?????????????????????????????????????????????????? | | ?????????????????????????????????????????????????? | | ??###????????????????????????????????????????????? | | ?? ????????????????????????????????????????????? | | ? ???????????????????? ??????????????????????? | | ? /??????????????????? ###???????????????????? | | #?????????????????? ???????????????????? | | """ #?????????????????? ???????????????????? | | """ #?????????????????? ???????????????????? | | """ #?????????????????? ???????????????????? | | """ #?????????????????? #???????????????????? | | """ #?????????????????" #???????????????????? | | #?????????????????" #???????????????????? | | """ #????????????? ??" #???????????????????? | | """ #????????????? ??" #???????????????????? | | """ #????????????# ?"" #???????????????????? | | """ #????????????# """ #???????????????????? | | """ #????????????# """k #???????????????????? | | #????????????# w #???????????????????? | | #????????????# k""" #???????????????????? | | #????????????# """ #???????????????????? | | #######????????????# """ #???????????????????? | | ???????????????????# """ #???????????????????? | | ???????????????????# """ #???????????????????? | | ???????????????????# """ R #???????????????????? | | ???????????????????# """@ #???????????????????? | | ???????????????????# k #???????????????????? | | ???????????????????# """s #???????????????????? | | ???????????????????# """s #???????????????????? | | ???????????????????# """s #???????????????????? | | ???????????????????# """s #???????????????????? | | ?R"????????######### """ #???????????????????? | | ??"###?????# """ #???????????????????? | | ?? ?????# """ #???????????????????? | | ????# s #???????????????????? | | ?" """ ????+ #???????????????????? | | ???""" "???# ######### #???????????????????? | | ????"" "???# #???????#h #???????????????????? | | ?????? ??# #??????? #???????????????????? | | ########"### #??????? #???????????????????? | | #??????? #???????????????????? | | #???????# #???????????????????? | | #???????# #???????????????????? | | #???????# #???????????????????? | | +########### #???????# #???????????????????? | | ????????# #???????# #???????????????????? | | ??????# #???????# #???????????????????? | | ?????# #???????# #???????????????????? | | """ #???# ?????? #???????????????????? | | "]" #???# ????? #???????????????????? | +----------------------------------------------------+ Best States ------------- Heat Dissipation 66 Energy Generation 39 Energy Capacity 750 Matter Stores 300 Matter Capacity 500 Sight Range 22 Terrain Scan Density 10 Jamming Range 16 Power Amplification 40 Additional Mass Support 12 Armor Coverage 600 Core Shielding 30 Propulsion Shielding 66 Evasion (%) 64 Target Analysis 5 Recoil Reduction 6 Kinecelleration 30 Offensive Hacking 10 Defensive Hacking 25 Relay Coupler Types 5 Relay Coupler Value 76 Authchip Count 3 Item Schematics ----------------- Assault Drone Bay | -4/Zhirov | Free Exp. Heat Sink | -4/Zhirov | Free Exp. Optical Array | -4/Zhirov | Free Imp. Arc Thrower | -4/Zhirov | Free Robot Schematics ------------------ None Fabricated ------------ Nothing Repaired ---------- Nothing Alien Tech Used ----------------- Integrated Dissipator Terrabomb Phase Redirector Transdimensional Reconstructor Achievements -------------- Gun Specialist Prolific Hacker Challenges ------------ None Game ------ Seed GrapheneSkeletonPod Manual? 0 Play Time 03:27:51 Cumulative 206.4 hours Start 2025.08.26 @ 09:22:59 End 2025.08.26 @ 13:46:20 Sessions 5 Manual Loads 0 Difficulty Rogue Special Mode None Game No. 312 Rogue 312 Adventurer 0 Explorer 0 Win Type - Total 4 Types 3/0/1/0/0/0/0/0/0/0 Lore% 79 Gallery% 75 Achievement% 56 Wizard Run 0 Options --------- Layout 1 ASCII 0 Keyboard 0 Movement Mouse Keybinds 0 Fullscreen 1 Font 24/Smallcaps Map View 50x40 Zoom Use 0% Tactical HUD 1 Map Filters NONE Filters NONE Steam 1 RUN: 270afd2a-14da-476c-bb90-e866bdb5445b